fUST/lending_fUST_20250718
["ID","MTS","AMOUNT","RATE_DAILY","PERIOD"]
[372881832,1752791444792,-521.99,0.00019514,2]
[372881833,1752791444803,-460.0,0.00019514,2]
[372881834,1752791444812,-720.78,0.00019514,2]
[372881835,1752791444821,-1521.8,0.00019514,2]
[372881836,1752791444831,-460.0,0.00019514,2]
[372881837,1752791444840,-556.21,0.00019514,2]
[372881838,1752791444850,-513.87,0.00019514,2]
[372881839,1752791444859,-460.0,0.00019514,2]
[372881840,1752791444868,-460.0,0.00019514,2]
[372881841,1752791444878,-743.51,0.00019514,2]
[372881842,1752791444887,-643.68,0.00019514,2]
[372881843,1752791444897,-827.97,0.00019514,2]
[372881844,1752791444906,-491.62,0.00019514,2]
[372881845,1752791444915,-2715.03,0.00019514,2]
[372881846,1752791444925,-460.0,0.00019514,2]
[372881847,1752791444935,-460.0,0.00019514,2]
[372881848,1752791444944,-585.93,0.00019514,2]
[372881849,1752791444954,-460.0,0.00019514,2]
[372881850,1752791444963,-1644.73,0.00019515,2]
[372881851,1752791444973,-1017.58,0.00019515,2]
[372881852,1752791444982,-460.0,0.00019515,2]
[372881853,1752791444992,-626.49,0.00019515,2]
[372881854,1752791445002,-901.81,0.00019515,2]
[372881855,1752791445012,-3044.32,0.00019515,2]
[372881856,1752791445021,-1223.07,0.00019515,2]
[372881857,1752791445030,-151.0,0.00019515,2]
[372881858,1752791445040,-460.0,0.00019516,2]
[372881859,1752791445049,-460.0,0.00019516,2]
[372881860,1752791445059,-574.67,0.00019516,2]
[372881861,1752791445069,-285.7777226,0.00019516,2]
[372881862,1752791445079,-460.0,0.00019516,2]
[372881863,1752791445088,-460.0,0.00019516,2]
[372881864,1752791445098,-461.84,0.00019516,2]
[372881865,1752791445107,-3218.94,0.00019516,2]
[372881866,1752791445117,-460.0,0.00019516,2]
[372881867,1752791445127,-752.49,0.00019516,2]
[372881868,1752791445140,-460.0,0.00019516,2]
[372881869,1752791445150,-852.82,0.00019516,2]
[372881870,1752791445159,-460.0,0.00019516,2]
[372881871,1752791445169,-2000.0,0.00019516,2]
[372881872,1752791445180,-2000.0,0.00019516,2]
[372881873,1752791445190,-500.0,0.0001952,2]
[372881874,1752791445199,-151.0,0.00019528,2]
[372881875,1752791445211,-1000.0,0.00019631,2]
[372881876,1752791445220,-587.0,0.00019701,2]
[372881877,1752791445230,-150.0,0.00019739,2]
[372881878,1752791445240,-1232.91,0.00019787,2]
[372881879,1752791445250,-593.03,0.00019788,2]
[372881880,1752791445259,-2148.08,0.00019788,2]
[372881881,1752791445271,-1518.61,0.00019788,2]
[372881882,1752791445282,-493.51,0.00019788,2]
[372881883,1752791445291,-460.0,0.00019788,2]
[372881884,1752791445301,-482.4,0.00019788,2]
[372881885,1752791445310,-460.0,0.00019788,2]
[372881886,1752791445320,-460.0,0.00019788,2]
[372881887,1752791445330,-720.78,0.00019788,2]
[372881888,1752791445339,-1521.8,0.00019788,2]
[372881890,1752791445349,-460.0,0.00019788,2]
[372881891,1752791445359,-556.21,0.00019788,2]
[372881893,1752791445368,-513.87,0.00019788,2]
[372881895,1752791445378,-460.0,0.00019788,2]
[372881896,1752791445387,-460.0,0.00019788,2]
[372881898,1752791445396,-743.51,0.00019788,2]
[372881899,1752791445405,-643.68,0.00019788,2]
[372881900,1752791445415,-827.97,0.00019788,2]
[372881901,1752791445424,-491.62,0.00019788,2]
[372881902,1752791445433,-2715.03,0.00019788,2]
[372881903,1752791445443,-460.0,0.00019788,2]
[372881904,1752791445452,-460.0,0.00019788,2]
[372881905,1752791445461,-585.93,0.00019788,2]
[372881906,1752791445470,-460.0,0.00019788,2]
[372881907,1752791445480,-1644.73,0.00019789,2]
[372881908,1752791445490,-1017.58,0.00019789,2]
[372881909,1752791445499,-460.0,0.00019789,2]
[372881910,1752791445509,-626.49,0.00019789,2]
[372881911,1752791445520,-901.81,0.00019789,2]
[372881912,1752791445529,-3044.32,0.00019789,2]
[372881913,1752791445538,-1223.07,0.00019789,2]
[372881914,1752791445548,-460.0,0.0001979,2]
[372881915,1752791445558,-555.06,0.0001979,2]
[372881916,1752791445567,-574.67,0.0001979,2]
[372881917,1752791445576,-460.0,0.0001979,2]
[372881918,1752791445586,-460.0,0.0001979,2]
[372881919,1752791445595,-461.84,0.0001979,2]
[372881920,1752791445605,-3218.94,0.0001979,2]
[372881921,1752791445614,-460.0,0.0001979,2]
[372881922,1752791445623,-752.49,0.0001979,2]
[372881923,1752791445633,-460.0,0.0001979,2]
[372881924,1752791445642,-852.82,0.0001979,2]
[372881925,1752791445652,-460.0,0.0001979,2]
[372881926,1752791445661,-151.0,0.000198,2]
[372881927,1752791445671,-300.0,0.00019801,2]
[372881928,1752791445681,-1622.99068755,0.0001982,2]
[372881929,1752791445690,-1500.0,0.00019888,2]
[372881930,1752791445700,-360.0,0.0001993,2]
[372881931,1752791445710,-246254.89233106,0.00019989,2]
[372881932,1752791445719,-151.0,0.00019989,2]
[372881933,1752791445728,-740.86991078,0.0002006,2]
[372881934,1752791445738,-1232.91,0.00020061,2]
[372881935,1752791445748,-2148.08,0.00020062,2]
[372881936,1752791445757,-1518.61,0.00020062,2]
[372881937,1752791445768,-493.51,0.00020062,2]
[372881938,1752791445777,-460.0,0.00020062,2]
[372881939,1752791445788,-482.4,0.00020062,2]
[372881940,1752791445797,-460.0,0.00020062,2]
[372881942,1752791445807,-460.0,0.00020062,2]
[372881944,1752791445816,-720.78,0.00020062,2]
[372881946,1752791445826,-1521.8,0.00020062,2]
[372881947,1752791445835,-460.0,0.00020062,2]
[372881949,1752791445944,-556.21,0.00020062,2]
[372881950,1752791445956,-513.87,0.00020062,2]
[372881951,1752791445967,-460.0,0.00020062,2]
[372881952,1752791445978,-339.78,0.00020062,2]
[372881953,1752791445988,-743.51,0.00020062,2]
[372881954,1752791445997,-643.68,0.00020062,2]
[372881955,1752791446007,-827.97,0.00020062,2]
[372881957,1752791446018,-491.62,0.00020062,2]
[372881958,1752791446028,-2715.03,0.00020062,2]
[372881959,1752791446037,-172.3050511,0.00020062,2]
[372881960,1752791446047,-178.53,0.00020062,2]
[372881961,1752791446059,-585.93,0.00020062,2]
[372881962,1752791446070,-460.0,0.00020062,2]
[372881963,1752791446081,-1644.73,0.00020063,2]
[372881964,1752791446091,-1017.58,0.00020063,2]
[372881965,1752791446101,-460.0,0.00020063,2]
[372881966,1752791446111,-626.49,0.00020063,2]
[372881967,1752791446121,-901.81,0.00020063,2]
[372881968,1752791446134,-3044.32,0.00020063,2]
[372881969,1752791446145,-1223.07,0.00020063,2]
[372881970,1752791446154,-460.0,0.00020064,2]
[372881971,1752791446164,-574.67,0.00020064,2]
[372881972,1752791446175,-460.0,0.00020064,2]
[372881973,1752791446185,-460.0,0.00020064,2]
[372881974,1752791446195,-461.84,0.00020064,2]
[372881975,1752791446205,-3218.94,0.00020064,2]
[372881976,1752791446215,-460.0,0.00020064,2]
[372881977,1752791446225,-752.49,0.00020064,2]
[372881978,1752791446235,-460.0,0.00020064,2]
[372881979,1752791446246,-852.82,0.00020064,2]
[372881980,1752791446257,-460.0,0.00020064,2]
[372881981,1752791446268,-500.0,0.00020064,2]
[372881982,1752791446278,-1924.49392517,0.00020064,2]
[372881983,1752791446288,-1500.0,0.00020179,2]
[372881984,1752791446298,-420.453519,0.00020187,2]
[372881985,1752791446307,-466.89406277,0.0002033,2]
[372881986,1752791446317,-1232.91,0.00020335,2]
[372881987,1752791446326,-2148.08,0.00020336,2]
[372881988,1752791446337,-1518.61,0.00020336,2]
[372881989,1752791446348,-493.51,0.00020336,2]
[372881990,1752791446359,-460.0,0.00020336,2]
[372881991,1752791446368,-482.4,0.00020336,2]
[372881992,1752791446378,-460.0,0.00020336,2]
[372881993,1752791446389,-460.0,0.00020336,2]
[372881994,1752791446399,-720.78,0.00020336,2]
[372881995,1752791446408,-1521.8,0.00020336,2]
[372881996,1752791446418,-460.0,0.00020336,2]
[372881997,1752791446428,-556.21,0.00020336,2]
[372881998,1752791446438,-513.87,0.00020336,2]
[372881999,1752791446447,-460.0,0.00020336,2]
[372882000,1752791446457,-743.51,0.00020336,2]
[372882001,1752791446467,-643.68,0.00020336,2]
[372882002,1752791446476,-827.97,0.00020336,2]
[372882003,1752791446486,-491.62,0.00020336,2]
[372882004,1752791446496,-2715.03,0.00020336,2]
[372882005,1752791446505,-585.93,0.00020336,2]
[372882006,1752791446516,-460.0,0.00020336,2]
[372882007,1752791446526,-1644.73,0.00020337,2]
[372882008,1752791446536,-1017.58,0.00020337,2]
[372882009,1752791446545,-460.0,0.00020337,2]
[372882010,1752791446555,-626.49,0.00020337,2]
[372882011,1752791446564,-901.81,0.00020337,2]
[372882012,1752791446574,-3044.32,0.00020337,2]
[372882013,1752791446584,-1223.07,0.00020337,2]
[372882014,1752791446593,-460.0,0.00020338,2]
[372882015,1752791446602,-574.67,0.00020338,2]
[372882016,1752791446612,-460.0,0.00020338,2]
[372882017,1752791446621,-460.0,0.00020338,2]
[372882018,1752791446630,-461.84,0.00020338,2]
[372882019,1752791446640,-3218.94,0.00020338,2]
[372882020,1752791446649,-460.0,0.00020338,2]
[372882021,1752791446659,-752.49,0.00020338,2]
[372882022,1752791446671,-460.0,0.00020338,2]
[372882023,1752791446682,-852.82,0.00020338,2]
[372882024,1752791446692,-460.0,0.00020338,2]
[372882025,1752791446702,-460.0,0.00020478,2]
[372882026,1752791446711,-3098.67,0.00020496,2]
[372882027,1752791446721,-1232.91,0.00020609,2]
[372882028,1752791446730,-2148.08,0.0002061,2]
[372882029,1752791446740,-1518.61,0.0002061,2]
[372882030,1752791446750,-493.51,0.0002061,2]
[372882031,1752791446759,-460.0,0.0002061,2]
[372882032,1752791446770,-482.4,0.0002061,2]
[372882033,1752791446779,-460.0,0.0002061,2]
[372882034,1752791446788,-460.0,0.0002061,2]
[372882035,1752791446798,-720.78,0.0002061,2]
[372882036,1752791446807,-1521.8,0.0002061,2]
[372882037,1752791446817,-460.0,0.0002061,2]
[372882038,1752791446827,-556.21,0.0002061,2]
[372882039,1752791446836,-513.87,0.0002061,2]
[372882040,1752791446845,-460.0,0.0002061,2]
[372882041,1752791446855,-743.51,0.0002061,2]
[372882042,1752791446865,-643.68,0.0002061,2]
[372882043,1752791446875,-827.97,0.0002061,2]
[372882044,1752791446884,-491.62,0.0002061,2]
[372882045,1752791446894,-2715.03,0.0002061,2]
[372882046,1752791446903,-585.93,0.0002061,2]
[372882047,1752791446913,-580.8,0.0002061,2]
[372882048,1752791446923,-1644.73,0.00020611,2]
[372882049,1752791446932,-1017.58,0.00020611,2]
[372882050,1752791446942,-460.0,0.00020611,2]
[372882051,1752791446951,-626.49,0.00020611,2]
[372882052,1752791446962,-901.81,0.00020611,2]
[372882053,1752791446971,-151.0,0.00020611,2]
[372882054,1752791446981,-3044.32,0.00020611,2]
[372882055,1752791446990,-1223.07,0.00020611,2]
[372882056,1752791447000,-460.0,0.00020612,2]
[372882057,1752791447010,-574.67,0.00020612,2]
[372882058,1752791447021,-460.0,0.00020612,2]
[372882059,1752791447030,-460.0,0.00020612,2]
[372882060,1752791447040,-461.84,0.00020612,2]
[372882061,1752791447049,-3218.94,0.00020612,2]
[372882062,1752791447059,-460.0,0.00020612,2]
[372882063,1752791447068,-752.49,0.00020612,2]
[372882064,1752791447077,-852.82,0.00020612,2]
[372882065,1752791447087,-460.0,0.00020612,2]
[372882066,1752791447096,-500.0,0.00020616,2]
[372882067,1752791447106,-151.0,0.00020624,2]
[372882068,1752791447115,-363.07898504,0.00020874,2]
[372882069,1752791447125,-1232.91,0.00020883,2]
[372882070,1752791447139,-2148.08,0.00020884,2]
[372882071,1752791447149,-1518.61,0.00020884,2]
[372882072,1752791447158,-493.51,0.00020884,2]
[372882073,1752791447168,-460.0,0.00020884,2]
[372882074,1752791447178,-482.4,0.00020884,2]
[372882075,1752791447188,-460.0,0.00020884,2]
[372882076,1752791447198,-460.0,0.00020884,2]
[372882077,1752791447211,-720.78,0.00020884,2]
[372882078,1752791447221,-1521.8,0.00020884,2]
[372882079,1752791447231,-460.0,0.00020884,2]
[372882080,1752791447241,-556.21,0.00020884,2]
[372882081,1752791447251,-513.87,0.00020884,2]
[372882082,1752791447260,-575.83,0.00020884,2]
[372882083,1752791447274,-743.51,0.00020884,2]
[372882084,1752791447284,-643.68,0.00020884,2]
[372882085,1752791447293,-827.97,0.00020884,2]
[372882086,1752791447303,-491.62,0.00020884,2]
[372882087,1752791447312,-2715.03,0.00020884,2]
[372882088,1752791447322,-585.93,0.00020884,2]
[372882089,1752791447332,-1644.73,0.00020885,2]
[372882090,1752791447341,-1017.58,0.00020885,2]
[372882091,1752791447350,-460.0,0.00020885,2]
[372882092,1752791447361,-626.49,0.00020885,2]
[372882093,1752791447371,-901.81,0.00020885,2]
[372882094,1752791447380,-3044.32,0.00020885,2]
[372882095,1752791447390,-1223.07,0.00020885,2]
[372882096,1752791447399,-460.0,0.00020886,2]
[372882097,1752791447409,-574.67,0.00020886,2]
[372882098,1752791447418,-460.0,0.00020886,2]
[372882099,1752791447428,-480.6045957,0.00020886,2]
[372882100,1752791447437,-461.84,0.00020886,2]
[372882101,1752791447446,-3218.94,0.00020886,2]
[372882102,1752791447455,-460.0,0.00020886,2]
[372882103,1752791447465,-752.49,0.00020886,2]
[372882104,1752791447474,-852.82,0.00020886,2]
[372882105,1752791447484,-460.0,0.00020886,2]
[372882106,1752791447493,-151.0,0.00020898,2]
[372882107,1752791447503,-721.311,0.000209,2]
[372882108,1752791447515,-178.53588129,0.000209,2]
[372882109,1752791447525,-151.0,0.000209,3]
[372882110,1752791447534,-180.0,0.00021026,2]
[372882111,1752791447544,-203.39,0.000211,2]
[372882112,1752791447553,-150.0,0.00021149,2]
[372882113,1752791447563,-1232.91,0.00021157,2]
[372882114,1752791447572,-2148.08,0.00021158,2]
[372882115,1752791447582,-1518.61,0.00021158,2]
[372882116,1752791447591,-493.51,0.00021158,2]
[372882117,1752791447601,-460.0,0.00021158,2]
[372882118,1752791447610,-482.4,0.00021158,2]
[372882119,1752791447620,-460.0,0.00021158,2]
[372882120,1752791447629,-460.0,0.00021158,2]
[372882121,1752791447639,-720.78,0.00021158,2]
[372882122,1752791447648,-1521.8,0.00021158,2]
[372882123,1752791447658,-460.0,0.00021158,2]
[372882124,1752791447667,-556.21,0.00021158,2]
[372882125,1752791447676,-513.87,0.00021158,2]
[372882126,1752791447686,-743.51,0.00021158,2]
[372882127,1752791447695,-643.68,0.00021158,2]
[372882128,1752791447705,-827.97,0.00021158,2]
[372882129,1752791447714,-491.62,0.00021158,2]
[372882130,1752791447723,-2715.03,0.00021158,2]
[372882131,1752791447733,-585.93,0.00021158,2]
[372882132,1752791447742,-1644.73,0.00021159,2]
[372882133,1752791447752,-1017.58,0.00021159,2]
[372882134,1752791447761,-180.60821625,0.00021159,2]
[372882135,1752791447771,-626.49,0.00021159,2]
[372882136,1752791447781,-901.81,0.00021159,2]
[372882137,1752791447790,-3044.32,0.00021159,2]
[372882138,1752791447799,-1223.07,0.00021159,2]
[372882139,1752791447809,-460.0,0.0002116,2]
[372882140,1752791447818,-574.67,0.0002116,2]
[372882141,1752791447827,-461.84,0.0002116,2]
[372882142,1752791447836,-3218.94,0.0002116,2]
[372882143,1752791447845,-460.0,0.0002116,2]
[372882144,1752791447854,-752.49,0.0002116,2]
[372882145,1752791447863,-852.82,0.0002116,2]
[372882146,1752791447873,-460.0,0.0002116,2]
[372882147,1752791447882,-150.0,0.00021308,2]
[372882148,1752791447891,-150.0,0.00021308,2]
[372882149,1752791447900,-150.0,0.00021308,2]
[372882150,1752791447910,-1622.99068755,0.0002139,2]
[372882151,1752791447919,-203.37,0.00021396,2]
[372882152,1752791447929,-2155.0,0.00021429,2]
[372882153,1752791447939,-968.0,0.00021429,2]
[372882154,1752791447948,-407.0,0.00021429,2]
[372882155,1752791447958,-1232.91,0.00021431,2]
[372882156,1752791447967,-2148.08,0.00021432,2]
[372882157,1752791447976,-1518.61,0.00021432,2]
[372882158,1752791447985,-493.51,0.00021432,2]
[372882159,1752791447995,-460.0,0.00021432,2]
[372882160,1752791448005,-482.4,0.00021432,2]
[372882161,1752791448016,-460.0,0.00021432,2]
[372882162,1752791448025,-460.0,0.00021432,2]
[372882163,1752791448035,-720.78,0.00021432,2]
[372882164,1752791448044,-1521.8,0.00021432,2]
[372882165,1752791448054,-460.0,0.00021432,2]
[372882166,1752791448063,-556.21,0.00021432,2]
[372882167,1752791448073,-513.87,0.00021432,2]
[372882168,1752791448082,-743.51,0.00021432,2]
[372882169,1752791448092,-643.68,0.00021432,2]
[372882170,1752791448101,-827.97,0.00021432,2]
[372882171,1752791448112,-491.62,0.00021432,2]
[372882172,1752791448121,-2715.03,0.00021432,2]
[372882173,1752791448134,-585.93,0.00021432,2]
[372882174,1752791448144,-1644.73,0.00021433,2]
[372882175,1752791448153,-1017.58,0.00021433,2]
[372882176,1752791448163,-626.49,0.00021433,2]
[372882177,1752791448174,-901.81,0.00021433,2]
[372882178,1752791448183,-3044.32,0.00021433,2]
[372882179,1752791448192,-1223.07,0.00021433,2]
[372882180,1752791448202,-454.2019003,0.00021434,2]
[372882181,1752791448214,-574.67,0.00021434,2]
[372882182,1752791448223,-461.84,0.00021434,2]
[372882183,1752791448233,-3218.94,0.00021434,2]
[372882184,1752791448242,-460.0,0.00021434,2]
[372882185,1752791448252,-752.49,0.00021434,2]
[372882186,1752791448261,-852.82,0.00021434,2]
[372882187,1752791448277,-460.0,0.00021434,2]
[372882188,1752791448286,-166695.75037126,0.000215,2]
[372882189,1752791448296,-500.0,0.00021507,2]
[372882190,1752791448306,-500.0,0.00021507,2]
[372882191,1752791448315,-500.0,0.00021507,2]
[372882192,1752791448324,-193.06127624,0.00021507,2]
[372882193,1752791448432,-207.4,0.00021507,2]
[372882194,1752791448442,-151.0,0.00021507,2]
[372882195,1752791448451,-151.0,0.00021507,2]
[372882196,1752791448461,-151.0,0.00021507,2]
[372882197,1752791448470,-151.0,0.00021507,2]
[372882198,1752791448480,-151.0,0.00021507,2]
[372882199,1752791448490,-151.0,0.00021507,2]
[372882200,1752791448500,-151.0,0.00021507,2]
[372882201,1752791448510,-151.0,0.00021507,2]
[372882202,1752791448524,-151.0,0.00021507,2]
[372882203,1752791448535,-151.0,0.00021507,2]
[372882204,1752791448546,-151.0,0.00021507,2]
[372882205,1752791448556,-151.0,0.00021507,2]
[372882206,1752791448566,-151.0,0.00021507,2]
[372882207,1752791448576,-151.0,0.00021507,2]
[372882208,1752791448585,-151.0,0.00021507,2]
[372882209,1752791448595,-151.0,0.00021507,2]
[372882210,1752791448605,-151.0,0.00021507,2]
[372882211,1752791448615,-151.0,0.00021507,2]
[372882212,1752791448624,-151.0,0.00021507,2]
[372882213,1752791448634,-151.0,0.00021507,2]
[372882214,1752791448644,-823.0,0.00021529,2]
[372882215,1752791448654,-466.89406277,0.00021639,2]
[372882216,1752791448663,-1232.91,0.00021705,2]
[372882217,1752791448673,-2148.08,0.00021706,2]
[372882218,1752791448683,-1518.61,0.00021706,2]
[372882219,1752791448692,-493.51,0.00021706,2]
[372882220,1752791448702,-460.0,0.00021706,2]
[372882221,1752791448712,-482.4,0.00021706,2]
[372882222,1752791448722,-460.0,0.00021706,2]
[372882223,1752791448732,-446.68,0.00021706,2]
[372882224,1752791448742,-720.78,0.00021706,2]
[372882225,1752791448752,-1521.8,0.00021706,2]
[372882226,1752791448761,-460.0,0.00021706,2]
[372882227,1752791448774,-556.21,0.00021706,2]
[372882228,1752791448783,-513.87,0.00021706,2]
[372882229,1752791448793,-743.51,0.00021706,2]
[372882230,1752791448802,-643.68,0.00021706,2]
[372882231,1752791448812,-827.97,0.00021706,2]
[372882232,1752791448823,-491.62,0.00021706,2]
[372882233,1752791448833,-2715.03,0.00021706,2]
[372882234,1752791448843,-585.93,0.00021706,2]
[372882235,1752791448853,-1644.73,0.00021707,2]
[372882236,1752791448863,-1017.58,0.00021707,2]
[372882237,1752791448873,-626.49,0.00021707,2]
[372882238,1752791448883,-901.81,0.00021707,2]
[372882239,1752791448893,-3044.32,0.00021707,2]
[372882240,1752791448902,-1223.07,0.00021707,2]
[372882241,1752791448912,-574.67,0.00021708,2]
[372882242,1752791448922,-461.84,0.00021708,2]
[372882243,1752791448931,-3218.94,0.00021708,2]
[372882244,1752791448941,-460.0,0.00021708,2]
[372882245,1752791448950,-752.49,0.00021708,2]
[372882246,1752791448959,-852.82,0.00021708,2]
[372882247,1752791448969,-460.0,0.00021708,2]
[372882248,1752791448978,-500.0,0.00021712,2]
[372882249,1752791448988,-259.631671,0.00021808,2]
[372882250,1752791448997,-5904.38481195,0.00021916,2]
[372882251,1752791449007,-150.0,0.00021918,2]
[372882252,1752791449021,-1232.91,0.00021979,2]
[372882253,1752791449031,-2148.08,0.0002198,2]
[372882254,1752791449041,-1518.61,0.0002198,2]
[372882255,1752791449051,-493.51,0.0002198,2]
[372882256,1752791449061,-452.43424337,0.0002198,2]
[372882257,1752791449071,-482.4,0.0002198,2]
[372882258,1752791449081,-460.0,0.0002198,2]
[372882259,1752791449090,-720.78,0.0002198,2]
[372882260,1752791449099,-1521.8,0.0002198,2]
[372882261,1752791449110,-182.51,0.0002198,2]
[372882262,1752791449120,-556.21,0.0002198,2]
[372882263,1752791449131,-513.87,0.0002198,2]
[372882264,1752791449142,-743.51,0.0002198,2]
[372882265,1752791449151,-643.68,0.0002198,2]
[372882266,1752791449161,-827.97,0.0002198,2]
[372882267,1752791449171,-491.62,0.0002198,2]
[372882268,1752791449181,-2715.03,0.0002198,2]
[372882269,1752791449190,-585.93,0.0002198,2]
[372882270,1752791449200,-1644.73,0.00021981,2]
[372882271,1752791449212,-1017.58,0.00021981,2]
[372882272,1752791449222,-626.49,0.00021981,2]
[372882273,1752791449231,-901.81,0.00021981,2]
[372882274,1752791449241,-3044.32,0.00021981,2]
[372882275,1752791449251,-1223.07,0.00021981,2]
[372882276,1752791449260,-574.67,0.00021982,2]
[372882277,1752791449273,-461.84,0.00021982,2]
[372882278,1752791449282,-3218.94,0.00021982,2]
[372882279,1752791449292,-537.24,0.00021982,2]
[372882280,1752791449302,-752.49,0.00021982,2]
[372882281,1752791449312,-852.82,0.00021982,2]
[372882282,1752791449323,-560.15095281,0.00021982,2]
[372882283,1752791449332,-3327.93,0.00022,7]
[372882284,1752791449344,-1514.61,0.00022,7]
[372882285,1752791449354,-28925.41,0.00022,2]
[372882286,1752791449364,-15665.81,0.00022,7]
[372882287,1752791449374,-476.16111942,0.00022,7]
[372882288,1752791449383,-151.0,0.00022,7]
[372882289,1752791449393,-279.852506,0.00022,7]
[372882290,1752791449404,-151.0,0.00022,7]
[372882291,1752791449413,-151.0,0.00022,7]
[372882292,1752791449422,-160.0,0.00022,7]
[372882293,1752791449432,-12607.95677342,0.00022,7]
[372882294,1752791449441,-214.44804168,0.00022,7]
[372882295,1752791449451,-3791.22812479,0.00022015,2]
[372882296,1752791449460,-4015.3536666,0.00022015,2]
[372882297,1752791449470,-800.0,0.00022053,2]
[372882298,1752791449479,-429.2412091,0.0002211,2]
[372882299,1752791449488,-429.2412091,0.00022137,2]
[372882300,1752791449498,-429.2412091,0.00022137,2]
[372882301,1752791449508,-428.6591303,0.00022137,2]
[372882302,1752791449518,-1232.91,0.00022253,2]
[372882303,1752791449528,-2148.08,0.00022254,2]
[372882304,1752791449538,-1518.61,0.00022254,2]
[372882305,1752791449548,-493.51,0.00022254,2]
[372882306,1752791449557,-482.4,0.00022254,2]
[372882307,1752791449567,-460.0,0.00022254,2]
[372882308,1752791449576,-720.78,0.00022254,2]
[372882309,1752791449586,-1521.8,0.00022254,2]
[372882310,1752791449595,-556.21,0.00022254,2]
[372882311,1752791449605,-513.87,0.00022254,2]
[372882312,1752791449615,-743.51,0.00022254,2]
[372882313,1752791449624,-643.68,0.00022254,2]
[372882314,1752791449633,-827.97,0.00022254,2]
[372882315,1752791449642,-491.62,0.00022254,2]
[372882316,1752791449652,-2715.03,0.00022254,2]
[372882317,1752791449662,-585.93,0.00022254,2]
[372882318,1752791449671,-1644.73,0.00022255,2]
[372882319,1752791449681,-1017.58,0.00022255,2]
[372882320,1752791449691,-626.49,0.00022255,2]
[372882321,1752791449700,-901.81,0.00022255,2]
[372882322,1752791449710,-3044.32,0.00022255,2]
[372882323,1752791449719,-1223.07,0.00022255,2]
[372882324,1752791449730,-574.67,0.00022256,2]
[372882325,1752791449740,-461.84,0.00022256,2]
[372882326,1752791449749,-3218.94,0.00022256,2]
[372882327,1752791449759,-752.49,0.00022256,2]
[372882328,1752791449771,-852.82,0.00022256,2]
[372882329,1752791449786,-151.0,0.00022272,7]
[372882330,1752791449797,-151.0,0.000223,9]
[372882331,1752791449807,-153.1567021,0.00022356,2]
[372882332,1752791449816,-573.7558661,0.00022356,2]
[372882333,1752791449825,-355.862382,0.00022356,2]
[372882334,1752791449835,-1196.4378368,0.00022356,2]
[372882335,1752791449844,-357.0867095,0.00022356,2]
[372882336,1752791449853,-355.862382,0.00022356,2]
[372882337,1752791449862,-319.5178467,0.00022356,2]
[372882338,1752791449872,-153.0,0.00022356,2]
[372882339,1752791449882,-319.5178469,0.00022384,2]
[372882340,1752791449892,-300.0,0.00022466,2]